[Event "Early-Titled-Tuesday-Blitz-October-24-2023"]
[Site "Chess.com"]
[Date "2023.10.24"]
[Round "8"]
[White "I_am_Javi"]
[Black "FoxOnTheRun97"]
[Result "1-0"]
[WhiteElo "2808"]
[BlackElo "2567"]
[TimeControl "180+1"]
[EndTime "9:24:25 PDT"]
[Termination "I_am_Javi won by resignation"]

1. e4 {[%clk 0:03:00.9]} 1... c6 {[%clk 0:03:00.1]} 2. d4 {[%clk 0:03:00.5]}
2... d5 {[%clk 0:03:00.5]} 3. e5 {[%clk 0:03:01.3]} 3... Bf5 {[%clk 0:02:59.8]}
4. c3 {[%clk 0:03:01.3]} 4... e6 {[%clk 0:02:59.7]} 5. Bd3 {[%clk 0:03:01.6]}
5... Bxd3 {[%clk 0:02:59.5]} 6. Qxd3 {[%clk 0:03:02.5]} 6... c5 {[%clk
0:02:59.9]} 7. Ne2 {[%clk 0:03:03.4]} 7... Nc6 {[%clk 0:02:59]} 8. O-O {[%clk
0:03:03.6]} 8... Qb6 {[%clk 0:02:54.9]} 9. Nd2 {[%clk 0:03:03.3]} 9... Nh6
{[%clk 0:02:49.1]} 10. Nf3 {[%clk 0:03:01.8]} 10... Be7 {[%clk 0:02:41.8]} 11.
Bxh6 {[%clk 0:03:01.1]} 11... gxh6 {[%clk 0:02:42.7]} 12. dxc5 {[%clk
0:02:28.2]} 12... Bxc5 {[%clk 0:02:10.5]} 13. b4 {[%clk 0:02:23.5]} 13... Bf8
{[%clk 0:02:09.3]} 14. a4 {[%clk 0:02:21.4]} 14... Bg7 {[%clk 0:02:05]} 15. Rfe1
{[%clk 0:01:13.5]} 15... Nxe5 {[%clk 0:01:00.1]} 16. Nxe5 {[%clk 0:01:11.3]}
16... Bxe5 {[%clk 0:01:01]} 17. Qh3 {[%clk 0:01:00.1]} 17... O-O-O {[%clk
0:00:40.9]} 18. Qxh6 {[%clk 0:00:58.6]} 18... Rdg8 {[%clk 0:00:40]} 19. Qh5
{[%clk 0:00:57.7]} 19... Qc7 {[%clk 0:00:38.5]} 20. Rac1 {[%clk 0:00:55.4]}
20... Rg6 {[%clk 0:00:25.6]} 21. Ng3 {[%clk 0:00:41.3]} 21... Bxg3 {[%clk
0:00:24.1]} 22. hxg3 {[%clk 0:00:42.2]} 22... Kb8 {[%clk 0:00:20.1]} 23. c4
{[%clk 0:00:33.9]} 23... dxc4 {[%clk 0:00:18.3]} 24. Re4 {[%clk 0:00:34.5]}
24... Qd7 {[%clk 0:00:15.3]} 25. Rexc4 {[%clk 0:00:33.4]} 25... Qxa4 {[%clk
0:00:11.8]} 26. Qe5+ {[%clk 0:00:33]} 1-0

[Event "Early-Titled-Tuesday-Blitz-October-24-2023"]
[Site "Chess.com"]
[Date "2023.10.24"]
[Round "8"]
[White "DonJuanEGenaro"]
[Black "Dewarfd"]
[Result "1-0"]
[WhiteElo "1842"]
[BlackElo "2167"]
[TimeControl "180+1"]
[EndTime "9:24:25 PDT"]
[Termination "DonJuanEGenaro won by resignation"]

1. Nf3 {[%clk 0:02:59.3]} 1... Nf6 {[%clk 0:02:55.7]} 2. d4 {[%clk 0:02:58.8]}
2... d5 {[%clk 0:02:55.1]} 3. c4 {[%clk 0:02:55.6]} 3... e6 {[%clk 0:02:55.1]}
4. Nc3 {[%clk 0:02:54.3]} 4... c5 {[%clk 0:02:54.7]} 5. cxd5 {[%clk 0:02:53.4]}
5... Nxd5 {[%clk 0:02:54.1]} 6. e4 {[%clk 0:02:51.8]} 6... Nxc3 {[%clk
0:02:52.8]} 7. bxc3 {[%clk 0:02:51.7]} 7... cxd4 {[%clk 0:02:53.4]} 8. cxd4
{[%clk 0:02:51.4]} 8... Bb4+ {[%clk 0:02:52.3]} 9. Bd2 {[%clk 0:02:50.9]} 9...
Bxd2+ {[%clk 0:02:52.6]} 10. Qxd2 {[%clk 0:02:49.9]} 10... O-O {[%clk
0:02:52.3]} 11. Bc4 {[%clk 0:02:47.4]} 11... b6 {[%clk 0:02:52]} 12. O-O {[%clk
0:02:44.3]} 12... Bb7 {[%clk 0:02:51.8]} 13. Rfe1 {[%clk 0:02:44.2]} 13... Nd7
{[%clk 0:02:42.2]} 14. a4 {[%clk 0:02:37.4]} 14... Re8 {[%clk 0:02:34.7]} 15. a5
{[%clk 0:02:30.2]} 15... Rc8 {[%clk 0:02:24.8]} 16. Bb5 {[%clk 0:02:18.5]} 16...
Rf8 {[%clk 0:02:02.7]} 17. axb6 {[%clk 0:01:54.8]} 17... axb6 {[%clk 0:01:58.4]}
18. Ra7 {[%clk 0:01:48]} 18... Rc7 {[%clk 0:01:47.4]} 19. d5 {[%clk 0:01:26.8]}
19... exd5 {[%clk 0:01:33.2]} 20. exd5 {[%clk 0:01:26]} 20... Nc5 {[%clk
0:01:16.8]} 21. d6 {[%clk 0:01:18]} 21... Rc8 {[%clk 0:00:53.6]} 22. Re7 {[%clk
0:01:15.5]} 22... Ra8 {[%clk 0:00:41.5]} 23. Raxb7 {[%clk 0:01:02.9]} 23... Nxb7
{[%clk 0:00:40.9]} 24. Rxb7 {[%clk 0:01:02.6]} 24... Ra1+ {[%clk 0:00:39.6]} 25.
Ne1 {[%clk 0:01:02.2]} 25... Re8 {[%clk 0:00:25.7]} 26. Bxe8 {[%clk 0:00:47.6]}
26... Qxe8 {[%clk 0:00:26.6]} 27. Re7 {[%clk 0:00:46.1]} 27... Qd8 {[%clk
0:00:20.4]} 28. d7 {[%clk 0:00:45.9]} 1-0

[Event "Early-Titled-Tuesday-Blitz-October-24-2023"]
[Site "Chess.com"]
[Date "2023.10.24"]
[Round "8"]
[White "M_One1126"]
[Black "kleinebeer98"]
[Result "0-1"]
[WhiteElo "2649"]
[BlackElo "2849"]
[TimeControl "180+1"]
[EndTime "9:24:26 PDT"]
[Termination "kleinebeer98 won on time"]

1. e4 {[%clk 0:03:00.9]} 1... e5 {[%clk 0:03:00.1]} 2. Nc3 {[%clk 0:02:59.7]}
2... Nf6 {[%clk 0:02:58.7]} 3. f4 {[%clk 0:02:59.2]} 3... d5 {[%clk 0:02:59.4]}
4. fxe5 {[%clk 0:02:59.2]} 4... Nxe4 {[%clk 0:03:00.2]} 5. Qf3 {[%clk
0:02:59.8]} 5... Nc6 {[%clk 0:02:59.9]} 6. Bb5 {[%clk 0:03:00.3]} 6... Nxc3
{[%clk 0:02:57.7]} 7. dxc3 {[%clk 0:03:01.2]} 7... Bc5 {[%clk 0:02:57.2]} 8. Bf4
{[%clk 0:02:48]} 8... Qh4+ {[%clk 0:02:46.8]} 9. g3 {[%clk 0:02:43]} 9... Qe7
{[%clk 0:02:47.3]} 10. O-O-O {[%clk 0:02:40.8]} 10... O-O {[%clk 0:02:39.2]} 11.
Qxd5 {[%clk 0:02:31.2]} 11... Be6 {[%clk 0:02:38.1]} 12. Qe4 {[%clk 0:02:30.4]}
12... Rfd8 {[%clk 0:02:07]} 13. Nf3 {[%clk 0:02:29.5]} 13... Bg4 {[%clk
0:01:52.6]} 14. h3 {[%clk 0:02:01.9]} 14... Bh5 {[%clk 0:01:49]} 15. Bxc6 {[%clk
0:01:36.4]} 15... Bg6 {[%clk 0:01:46.2]} 16. Qa4 {[%clk 0:01:09.2]} 16... bxc6
{[%clk 0:01:46.4]} 17. Qxc6 {[%clk 0:01:10.1]} 17... h6 {[%clk 0:01:40.7]} 18.
e6 {[%clk 0:00:55.4]} 18... Bb6 {[%clk 0:01:40.5]} 19. exf7+ {[%clk 0:00:45]}
19... Bxf7 {[%clk 0:01:41.4]} 20. Kb1 {[%clk 0:00:38]} 20... Be8 {[%clk
0:01:37.6]} 21. Qc4+ {[%clk 0:00:37.4]} 21... Bf7 {[%clk 0:01:38.2]} 22. Qc6
{[%clk 0:00:37.7]} 22... Be8 {[%clk 0:01:38.3]} 23. Qc4+ {[%clk 0:00:37.9]}
23... Bf7 {[%clk 0:01:32.8]} 24. Qa4 {[%clk 0:00:23]} 24... Rxd1+ {[%clk
0:01:29.3]} 25. Rxd1 {[%clk 0:00:20.8]} 25... Qe2 {[%clk 0:01:29.6]} 26. Re1
{[%clk 0:00:09.6]} 26... Qxf3 {[%clk 0:01:29]} 27. Qd7 {[%clk 0:00:07.8]} 27...
Bg6 {[%clk 0:01:12.1]} 28. b3 {[%clk 0:00:06]} 28... Qxc3 {[%clk 0:01:08]} 29.
Rc1 {[%clk 0:00:03.1]} 29... Kh7 {[%clk 0:01:06.6]} 30. h4 {[%clk 0:00:03]}
30... Re8 {[%clk 0:01:00.4]} 31. Qd5 {[%clk 0:00:02.4]} 31... Re2 {[%clk
0:00:58.7]} 0-1

[Event "Early-Titled-Tuesday-Blitz-October-24-2023"]
[Site "Chess.com"]
[Date "2023.10.24"]
[Round "8"]
[White "DonCiao"]
[Black "AndresDelgado77"]
[Result "0-1"]
[WhiteElo "2136"]
[BlackElo "2344"]
[TimeControl "180+1"]
[EndTime "9:24:26 PDT"]
[Termination "AndresDelgado77 won by checkmate"]

1. c4 {[%clk 0:03:00.9]} 1... g6 {[%clk 0:02:59.1]} 2. g3 {[%clk 0:03:00.7]}
2... Bg7 {[%clk 0:02:58.1]} 3. Bg2 {[%clk 0:03:00.8]} 3... c5 {[%clk 0:02:59]}
4. Nf3 {[%clk 0:02:58.1]} 4... Nc6 {[%clk 0:02:59.9]} 5. O-O {[%clk 0:02:56.6]}
5... e6 {[%clk 0:02:58.6]} 6. Nc3 {[%clk 0:02:51.3]} 6... Nge7 {[%clk
0:02:58.8]} 7. d4 {[%clk 0:02:51.1]} 7... cxd4 {[%clk 0:02:56.3]} 8. Nb5 {[%clk
0:02:50.8]} 8... Nf5 {[%clk 0:02:56.2]} 9. Qa4 {[%clk 0:02:19.7]} 9... O-O
{[%clk 0:02:32.5]} 10. c5 {[%clk 0:02:12.1]} 10... e5 {[%clk 0:02:18.1]} 11. Nd6
{[%clk 0:02:03.8]} 11... Nxd6 {[%clk 0:02:13.9]} 12. cxd6 {[%clk 0:02:04.1]}
12... Qf6 {[%clk 0:02:09.4]} 13. Qa3 {[%clk 0:02:03.1]} 13... h6 {[%clk
0:02:01.7]} 14. Nd2 {[%clk 0:01:58.1]} 14... b6 {[%clk 0:01:47.3]} 15. Ne4
{[%clk 0:01:52.8]} 15... Qe6 {[%clk 0:01:46.4]} 16. f4 {[%clk 0:01:39.9]} 16...
f5 {[%clk 0:01:41.4]} 17. Nd2 {[%clk 0:01:36]} 17... e4 {[%clk 0:01:40]} 18. Qb3
{[%clk 0:01:26.5]} 18... Rf6 {[%clk 0:01:32.7]} 19. Nc4 {[%clk 0:01:24.5]} 19...
Ba6 {[%clk 0:01:26.3]} 20. Ne5 {[%clk 0:01:19.2]} 20... Bxe2 {[%clk 0:01:11.7]}
21. Re1 {[%clk 0:01:16]} 21... d3 {[%clk 0:01:09.6]} 22. Nxd7 {[%clk 0:01:09.8]}
22... Qxb3 {[%clk 0:01:06.4]} 23. Nxf6+ {[%clk 0:01:09.3]} 23... Bxf6 {[%clk
0:01:05.5]} 24. axb3 {[%clk 0:01:09.9]} 24... Bd4+ {[%clk 0:01:02.9]} 25. Kh1
{[%clk 0:01:07.5]} 25... Nb4 {[%clk 0:00:59.5]} 26. Ra4 {[%clk 0:00:59.1]} 26...
a5 {[%clk 0:00:56.1]} 27. Bd2 {[%clk 0:00:58]} 27... Bc5 {[%clk 0:00:55.6]} 28.
d7 {[%clk 0:00:50.6]} 28... Rd8 {[%clk 0:00:54.8]} 29. Bf1 {[%clk 0:00:44.5]}
29... e3 {[%clk 0:00:48]} 30. Bxb4 {[%clk 0:00:42.3]} 30... Bxb4 {[%clk
0:00:46.4]} 31. Rxe2 {[%clk 0:00:42.3]} 31... dxe2 {[%clk 0:00:45.6]} 32. Bxe2
{[%clk 0:00:42.9]} 32... Rxd7 {[%clk 0:00:44.6]} 33. Kg2 {[%clk 0:00:39.4]}
33... Rd2 {[%clk 0:00:43.6]} 34. Kf3 {[%clk 0:00:39.5]} 34... Bc5 {[%clk
0:00:40.7]} 35. Ra1 {[%clk 0:00:38]} 35... Rxb2 {[%clk 0:00:39.6]} 36. Rd1
{[%clk 0:00:37.6]} 36... Kg7 {[%clk 0:00:37]} 37. Bc4 {[%clk 0:00:36.7]} 37...
Rf2# {[%clk 0:00:34.9]} 0-1

[Event "Early-Titled-Tuesday-Blitz-October-24-2023"]
[Site "Chess.com"]
[Date "2023.10.24"]
[Round "8"]
[White "nihalsarin"]
[Black "Iball95"]
[Result "1-0"]
[WhiteElo "3121"]
[BlackElo "2850"]
[TimeControl "180+1"]
[EndTime "9:24:31 PDT"]
[Termination "nihalsarin won by checkmate"]

1. a3 {[%clk 0:03:00.9]} 1... e5 {[%clk 0:02:50]} 2. c4 {[%clk 0:03:00.6]} 2...
Nf6 {[%clk 0:02:48.7]} 3. Nc3 {[%clk 0:02:59.4]} 3... Nc6 {[%clk 0:02:47.6]} 4.
e3 {[%clk 0:02:58.5]} 4... d5 {[%clk 0:02:47.6]} 5. cxd5 {[%clk 0:02:59.4]} 5...
Nxd5 {[%clk 0:02:47.6]} 6. Qc2 {[%clk 0:03:00.2]} 6... Nxc3 {[%clk 0:02:47.6]}
7. Qxc3 {[%clk 0:02:58.2]} 7... Bd6 {[%clk 0:02:46.6]} 8. b4 {[%clk 0:02:58.1]}
8... O-O {[%clk 0:02:46.8]} 9. Bb2 {[%clk 0:02:58.6]} 9... Re8 {[%clk 0:02:46]}
10. Nf3 {[%clk 0:02:58.5]} 10... a6 {[%clk 0:02:40.1]} 11. Bd3 {[%clk
0:02:55.3]} 11... h6 {[%clk 0:02:39.5]} 12. Qc2 {[%clk 0:02:48.9]} 12... Bg4
{[%clk 0:02:28.5]} 13. h3 {[%clk 0:02:42.8]} 13... Bd7 {[%clk 0:02:28.4]} 14. g4
{[%clk 0:02:38.8]} 14... a5 {[%clk 0:02:06]} 15. b5 {[%clk 0:02:35.6]} 15... Na7
{[%clk 0:02:06.7]} 16. a4 {[%clk 0:02:27.4]} 16... c6 {[%clk 0:02:06.3]} 17. b6
{[%clk 0:02:28.1]} 17... Nc8 {[%clk 0:02:06.1]} 18. Rg1 {[%clk 0:02:22.5]} 18...
Nxb6 {[%clk 0:01:52.6]} 19. g5 {[%clk 0:02:22.5]} 19... hxg5 {[%clk 0:01:41.3]}
20. Nxg5 {[%clk 0:02:20.2]} 20... Nd5 {[%clk 0:01:31.4]} 21. Bh7+ {[%clk
0:02:13.6]} 21... Kf8 {[%clk 0:01:30.9]} 22. Nxf7 {[%clk 0:02:14.5]} 22... Qf6
{[%clk 0:01:16.9]} 23. Nxd6 {[%clk 0:02:04.4]} 23... Qxd6 {[%clk 0:01:17.8]} 24.
Rg5 {[%clk 0:01:48]} 24... Nb4 {[%clk 0:01:14.3]} 25. Qg6 {[%clk 0:01:47.5]}
25... Qxg6 {[%clk 0:01:11.5]} 26. Bxg6 {[%clk 0:01:48.4]} 26... Re6 {[%clk
0:01:07.5]} 27. Ke2 {[%clk 0:01:45.4]} 27... Be8 {[%clk 0:00:58.5]} 28. Bf5
{[%clk 0:01:38.2]} 28... Re7 {[%clk 0:00:59.2]} 29. Be4 {[%clk 0:01:38.6]} 29...
Bd7 {[%clk 0:00:38.5]} 30. Bxe5 {[%clk 0:01:37.2]} 30... Rd8 {[%clk 0:00:38.8]}
31. Rag1 {[%clk 0:01:34.3]} 31... Bxh3 {[%clk 0:00:32.9]} 32. Bxg7+ {[%clk
0:01:32.1]} 32... Ke8 {[%clk 0:00:31.5]} 33. Bg6+ {[%clk 0:01:27.8]} 33... Kd7
{[%clk 0:00:31.7]} 34. Bf6 {[%clk 0:01:28.5]} 34... Be6 {[%clk 0:00:26.9]} 35.
d3 {[%clk 0:01:09.9]} 35... Rg8 {[%clk 0:00:25.3]} 36. Bxe7 {[%clk 0:01:08.7]}
36... Kxe7 {[%clk 0:00:26.2]} 37. Be4 {[%clk 0:01:08.8]} 37... Rf8 {[%clk
0:00:20.9]} 38. Rxa5 {[%clk 0:01:08.5]} 38... Nd5 {[%clk 0:00:18.2]} 39. Rg7+
{[%clk 0:01:08.5]} 39... Kd6 {[%clk 0:00:18.7]} 40. Bxd5 {[%clk 0:01:06.5]}
40... Bxd5 {[%clk 0:00:19.6]} 41. e4 {[%clk 0:01:07]} 41... Bb3 {[%clk
0:00:19.4]} 42. Rxb7 {[%clk 0:01:06.6]} 42... Be6 {[%clk 0:00:20.3]} 43. e5#
{[%clk 0:01:06.4]} 1-0

[Event "Early-Titled-Tuesday-Blitz-October-24-2023"]
[Site "Chess.com"]
[Date "2023.10.24"]
[Round "8"]
[White "Lennis93"]
[Black "JiaHaoxiang"]
[Result "1-0"]
[WhiteElo "2742"]
[BlackElo "2608"]
[TimeControl "180+1"]
[EndTime "9:24:31 PDT"]
[Termination "Lennis93 won by resignation"]

1. e4 {[%clk 0:03:00.9]} 1... c5 {[%clk 0:03:00]} 2. Nf3 {[%clk 0:03:00.6]} 2...
d6 {[%clk 0:03:00.3]} 3. Bb5+ {[%clk 0:02:59.5]} 3... Bd7 {[%clk 0:03:00.4]} 4.
c4 {[%clk 0:02:59.8]} 4... Nf6 {[%clk 0:02:58.8]} 5. Nc3 {[%clk 0:02:59.4]} 5...
g6 {[%clk 0:02:59.3]} 6. O-O {[%clk 0:02:59.1]} 6... Bg7 {[%clk 0:02:59.7]} 7.
d4 {[%clk 0:02:59.3]} 7... cxd4 {[%clk 0:02:57.7]} 8. Nxd4 {[%clk 0:02:59.9]}
8... O-O {[%clk 0:02:55.8]} 9. Bg5 {[%clk 0:02:59.9]} 9... Nc6 {[%clk
0:02:52.1]} 10. Bxc6 {[%clk 0:02:59.7]} 10... Bxc6 {[%clk 0:02:51.3]} 11. Nxc6
{[%clk 0:02:58.9]} 11... bxc6 {[%clk 0:02:51.4]} 12. c5 {[%clk 0:02:59.2]} 12...
Qa5 {[%clk 0:02:33.2]} 13. Bxf6 {[%clk 0:02:56.4]} 13... Bxf6 {[%clk 0:02:33.3]}
14. cxd6 {[%clk 0:02:57]} 14... exd6 {[%clk 0:02:33.5]} 15. Qxd6 {[%clk
0:02:56.4]} 15... Bxc3 {[%clk 0:02:32.2]} 16. bxc3 {[%clk 0:02:56.7]} 16... Qxc3
{[%clk 0:02:29.8]} 17. Rfc1 {[%clk 0:02:56.7]} 17... Qb2 {[%clk 0:02:22.2]} 18.
Qxc6 {[%clk 0:02:55.4]} 18... Rab8 {[%clk 0:02:10.8]} 19. g3 {[%clk 0:02:53.9]}
19... Rfd8 {[%clk 0:02:09.9]} 20. Rab1 {[%clk 0:02:21.7]} 20... Qxa2 {[%clk
0:02:01.4]} 21. Rxb8 {[%clk 0:02:20.3]} 21... Rxb8 {[%clk 0:02:02.3]} 22. e5
{[%clk 0:02:15.3]} 22... a5 {[%clk 0:01:47.4]} 23. Kg2 {[%clk 0:02:13]} 23... a4
{[%clk 0:01:45.4]} 24. Rc4 {[%clk 0:02:10]} 24... a3 {[%clk 0:01:45.2]} 25. e6
{[%clk 0:02:09.9]} 25... Qe2 {[%clk 0:01:31]} 26. exf7+ {[%clk 0:01:57.5]} 26...
Kg7 {[%clk 0:01:17.9]} 27. Rf4 {[%clk 0:01:52.1]} 27... Qe7 {[%clk 0:01:14.5]}
28. Qc3+ {[%clk 0:01:51.4]} 28... Kh6 {[%clk 0:01:08.9]} 29. Rh4+ {[%clk
0:01:51.5]} 29... Kg5 {[%clk 0:01:04.3]} 30. f4+ {[%clk 0:01:25]} 30... Kf5
{[%clk 0:01:04.1]} 31. Qa5+ {[%clk 0:01:24.8]} 31... Kf6 {[%clk 0:00:48.7]} 32.
Qg5+ {[%clk 0:01:23.7]} 32... Ke6 {[%clk 0:00:49.1]} 33. Qe5+ {[%clk 0:01:18.3]}
33... Kd7 {[%clk 0:00:49.4]} 34. Qxb8 {[%clk 0:01:17.6]} 34... Qe2+ {[%clk
0:00:48.8]} 35. Kh3 {[%clk 0:01:16.9]} 35... Qf1+ {[%clk 0:00:44.7]} 36. Kg4
{[%clk 0:01:16.8]} 36... Qe2+ {[%clk 0:00:42.5]} 37. Kg5 {[%clk 0:01:16.8]}
37... Qe7+ {[%clk 0:00:36]} 38. Kh6 {[%clk 0:01:16.7]} 38... Qxf7 {[%clk
0:00:36.6]} 39. Qa7+ {[%clk 0:01:13.3]} 39... Ke6 {[%clk 0:00:36.6]} 40. f5+
{[%clk 0:01:09.8]} 40... Qxf5 {[%clk 0:00:34.1]} 41. Qa6+ {[%clk 0:00:58.1]}
41... Ke7 {[%clk 0:00:32.7]} 42. Qxa3+ {[%clk 0:00:56.7]} 42... Ke8 {[%clk
0:00:33.2]} 43. Qe3+ {[%clk 0:00:55.1]} 43... Kd7 {[%clk 0:00:32]} 44. Rd4+
{[%clk 0:00:54.9]} 1-0

[Event "Early-Titled-Tuesday-Blitz-October-24-2023"]
[Site "Chess.com"]
[Date "2023.10.24"]
[Round "8"]
[White "MidnightFox"]
[Black "ellatambien"]
[Result "0-1"]
[WhiteElo "2502"]
[BlackElo "2621"]
[TimeControl "180+1"]
[EndTime "9:24:36 PDT"]
[Termination "ellatambien won on time"]

1. d4 {[%clk 0:03:00.9]} 1... Nf6 {[%clk 0:02:59.7]} 2. c4 {[%clk 0:03:00.5]}
2... e6 {[%clk 0:03:00.2]} 3. g3 {[%clk 0:03:00]} 3... d5 {[%clk 0:02:59.6]} 4.
Bg2 {[%clk 0:03:00.3]} 4... Be7 {[%clk 0:03:00.1]} 5. Nf3 {[%clk 0:03:00.1]}
5... O-O {[%clk 0:03:00.7]} 6. O-O {[%clk 0:03:00.4]} 6... dxc4 {[%clk
0:03:00.9]} 7. Qc2 {[%clk 0:03:00.6]} 7... b5 {[%clk 0:03:00.1]} 8. a4 {[%clk
0:02:57.8]} 8... Bb7 {[%clk 0:02:59.6]} 9. axb5 {[%clk 0:02:55.9]} 9... a6
{[%clk 0:02:58.7]} 10. bxa6 {[%clk 0:02:52]} 10... Nxa6 {[%clk 0:02:57.9]} 11.
Qxc4 {[%clk 0:02:48.2]} 11... Bd5 {[%clk 0:02:54.1]} 12. Qc3 {[%clk 0:02:34.2]}
12... Ne4 {[%clk 0:02:50.5]} 13. Qe3 {[%clk 0:02:27.7]} 13... Nb4 {[%clk
0:02:50.7]} 14. Rxa8 {[%clk 0:02:26]} 14... Qxa8 {[%clk 0:02:49.8]} 15. Nc3
{[%clk 0:02:25.8]} 15... Bb7 {[%clk 0:02:44.7]} 16. Nxe4 {[%clk 0:02:16.9]}
16... Bxe4 {[%clk 0:02:44.1]} 17. Bd2 {[%clk 0:02:09.9]} 17... Nc2 {[%clk
0:02:36]} 18. Qf4 {[%clk 0:02:03.2]} 18... Nxd4 {[%clk 0:02:32.5]} 19. Re1
{[%clk 0:01:31.8]} 19... Bf6 {[%clk 0:02:24.6]} 20. Bc3 {[%clk 0:01:25.8]} 20...
Nxf3+ {[%clk 0:02:13.3]} 21. exf3 {[%clk 0:01:12.9]} 21... Bxc3 {[%clk
0:02:12.6]} 22. bxc3 {[%clk 0:01:12.5]} 22... Bd5 {[%clk 0:02:08.3]} 23. Qxc7
{[%clk 0:01:12.1]} 23... Rc8 {[%clk 0:02:05.2]} 24. Qe5 {[%clk 0:01:10]} 24...
Qc6 {[%clk 0:01:56.8]} 25. Rc1 {[%clk 0:01:06.2]} 25... Bxf3 {[%clk 0:01:56.7]}
26. Bxf3 {[%clk 0:01:05.4]} 26... Qxf3 {[%clk 0:01:57.6]} 27. c4 {[%clk
0:01:02.7]} 27... h5 {[%clk 0:01:48]} 28. h4 {[%clk 0:01:02]} 28... Qa3 {[%clk
0:01:40.9]} 29. Rc3 {[%clk 0:00:56.7]} 29... Qa1+ {[%clk 0:01:27]} 30. Kg2
{[%clk 0:00:56.5]} 30... Qd1 {[%clk 0:01:27.5]} 31. c5 {[%clk 0:00:52.7]} 31...
Ra8 {[%clk 0:01:20.3]} 32. Qd6 {[%clk 0:00:34.6]} 32... Qe1 {[%clk 0:01:15.4]}
33. Re3 {[%clk 0:00:18.1]} 33... Qc1 {[%clk 0:01:15.4]} 34. Rb3 {[%clk 0:00:13]}
34... Ra1 {[%clk 0:01:11.6]} 35. Rb8+ {[%clk 0:00:06.4]} 35... Kh7 {[%clk
0:01:11.3]} 36. Qd3+ {[%clk 0:00:05.1]} 36... g6 {[%clk 0:01:11.7]} 37. Kf3
{[%clk 0:00:05.1]} 37... Qh1+ {[%clk 0:01:10.5]} 38. Ke3 {[%clk 0:00:04.5]}
38... Re1+ {[%clk 0:01:08.4]} 39. Kf4 {[%clk 0:00:04.8]} 39... Qh3 {[%clk
0:01:01.1]} 0-1

[Event "Early-Titled-Tuesday-Blitz-October-24-2023"]
[Site "Chess.com"]
[Date "2023.10.24"]
[Round "8"]
[White "whiteglovethief"]
[Black "GatoRojo150"]
[Result "0-1"]
[WhiteElo "2443"]
[BlackElo "2603"]
[TimeControl "180+1"]
[EndTime "9:24:37 PDT"]
[Termination "GatoRojo150 won by resignation"]

1. d4 {[%clk 0:03:00.9]} 1... d5 {[%clk 0:02:59.8]} 2. c4 {[%clk 0:03:01]} 2...
dxc4 {[%clk 0:03:00.7]} 3. e4 {[%clk 0:03:00.7]} 3... b5 {[%clk 0:03:00.4]} 4.
a4 {[%clk 0:02:59.5]} 4... c6 {[%clk 0:03:00.9]} 5. axb5 {[%clk 0:02:59.3]} 5...
cxb5 {[%clk 0:03:01.8]} 6. b3 {[%clk 0:02:59.1]} 6... e5 {[%clk 0:03:01.1]} 7.
bxc4 {[%clk 0:02:59]} 7... Nf6 {[%clk 0:03:00.4]} 8. Nf3 {[%clk 0:02:47.5]} 8...
Nxe4 {[%clk 0:03:00]} 9. Bd3 {[%clk 0:02:41.6]} 9... Bb4+ {[%clk 0:02:58.1]} 10.
Kf1 {[%clk 0:02:41.7]} 10... Bb7 {[%clk 0:02:54.5]} 11. Qe2 {[%clk 0:02:37.2]}
11... f5 {[%clk 0:02:51.6]} 12. Nxe5 {[%clk 0:02:34.2]} 12... O-O {[%clk
0:02:41.1]} 13. cxb5 {[%clk 0:02:27.4]} 13... Nd7 {[%clk 0:02:19.4]} 14. Bc4+
{[%clk 0:02:22.1]} 14... Kh8 {[%clk 0:02:18.6]} 15. Nf7+ {[%clk 0:02:19.9]}
15... Rxf7 {[%clk 0:02:18.8]} 16. Bxf7 {[%clk 0:02:20.5]} 16... Qh4 {[%clk
0:02:07.8]} 17. Nd2 {[%clk 0:01:57.4]} 17... Ndf6 {[%clk 0:02:02.6]} 18. Nf3
{[%clk 0:01:55.6]} 18... Qg4 {[%clk 0:01:41.8]} 19. h3 {[%clk 0:01:54.9]} 19...
Ng3+ {[%clk 0:01:32.2]} 20. fxg3 {[%clk 0:01:55.1]} 20... Qxg3 {[%clk
0:01:33.1]} 21. Be3 {[%clk 0:01:44]} 21... Ne4 {[%clk 0:01:26]} 22. Bf2 {[%clk
0:01:41.7]} 22... Qc7 {[%clk 0:01:23.7]} 23. d5 {[%clk 0:01:32.1]} 23... Qxf7
{[%clk 0:01:21.7]} 24. Qc4 {[%clk 0:01:22.8]} 24... Bc3 {[%clk 0:01:14.8]} 25.
Rxa7 {[%clk 0:01:22.3]} 25... Rxa7 {[%clk 0:00:55.7]} 26. Bxa7 {[%clk
0:01:23.2]} 26... h6 {[%clk 0:00:53.7]} 27. Bd4 {[%clk 0:01:13.3]} 27... Bxd4
{[%clk 0:00:45.8]} 28. Qxd4 {[%clk 0:01:13.3]} 28... Ng3+ {[%clk 0:00:39.5]} 29.
Ke1 {[%clk 0:01:10.3]} 29... Nxh1 {[%clk 0:00:40.4]} 30. Ne5 {[%clk 0:01:04.2]}
30... Qxd5 {[%clk 0:00:37.8]} 31. Ng6+ {[%clk 0:00:55.3]} 31... Kh7 {[%clk
0:00:35.9]} 32. Qxd5 {[%clk 0:00:51.2]} 32... Bxd5 {[%clk 0:00:36.8]} 33. Nf4
{[%clk 0:00:51.6]} 33... Bb7 {[%clk 0:00:34.5]} 34. Ne2 {[%clk 0:00:44.9]} 34...
Bxg2 {[%clk 0:00:33.2]} 35. b6 {[%clk 0:00:44.9]} 35... g5 {[%clk 0:00:30]} 36.
Nd4 {[%clk 0:00:40.6]} 36... f4 {[%clk 0:00:28.1]} 37. Ne6 {[%clk 0:00:38.2]}
37... f3 {[%clk 0:00:24.7]} 0-1